fUST/lending_fUST_20250911
["ID","MTS","AMOUNT","RATE_DAILY","PERIOD"]
[384840709,1757584252050,-480.0,0.00015068,2]
[384840710,1757584252059,-480.0,0.00015068,2]
[384840711,1757584252072,-480.0,0.00015068,2]
[384840712,1757584252086,-1053.06,0.00015068,2]
[384840713,1757584252096,-480.0,0.00015068,2]
[384840714,1757584252105,-523.43,0.00015068,2]
[384840715,1757584252114,-777.85,0.00015068,2]
[384840716,1757584252123,-480.0,0.00015068,2]
[384840717,1757584252132,-480.0,0.00015068,2]
[384840718,1757584252143,-480.0,0.00015068,2]
[384840719,1757584252152,-821.46,0.00015068,2]
[384840720,1757584252162,-672.95,0.00015068,2]
[384840721,1757584252171,-1071.51,0.00015068,2]
[384840722,1757584252181,-566.16,0.00015068,2]
[384840723,1757584252190,-254.152151,0.00015068,2]
[384840724,1757584252199,-254.152151,0.00015068,2]
[384840725,1757584252209,-254.152151,0.00015068,2]
[384840726,1757584252218,-480.0,0.00015068,2]
[384840727,1757584252227,-254.152151,0.00015068,2]
[384840728,1757584252237,-151.0,0.00015068,2]
[384840729,1757584252246,-151.0,0.00015068,2]
[384840730,1757584252256,-151.0,0.00015068,2]
[384840731,1757584252265,-480.0,0.00015068,2]
[384840732,1757584252274,-151.0,0.00015068,2]
[384840733,1757584252284,-151.0,0.00015068,2]
[384840734,1757584252293,-151.0,0.00015068,2]
[384840735,1757584252303,-394.92252,0.00015068,2]
[384840736,1757584252312,-394.92252,0.00015068,2]
[384840737,1757584252322,-394.92252,0.00015068,2]
[384840738,1757584252331,-394.92252,0.00015068,2]
[384840739,1757584252340,-525.52,0.00015068,2]
[384840740,1757584252350,-1089.57,0.00015068,2]
[384840741,1757584252359,-151.0,0.00015068,2]
[384840742,1757584252368,-151.0,0.00015068,2]
[384840743,1757584252378,-151.0,0.00015068,2]
[384840744,1757584252387,-1583.6,0.00015068,2]
[384840745,1757584252396,-480.0,0.00015068,2]
[384840746,1757584252406,-151.0,0.00015068,2]
[384840747,1757584252415,-177.197458,0.00015068,2]
[384840748,1757584252424,-2104.08061694,0.00015116,2]
[384840749,1757584252434,-1000.0,0.00015162,2]
[384840750,1757584252443,-1000.0,0.00015162,2]
[384840751,1757584252452,-242.94577971,0.00015162,2]
[384840752,1757584252461,-151.0,0.00015162,2]
[384840753,1757584252471,-151.0,0.00015162,2]
[384840754,1757584252480,-151.0,0.00015162,2]
[384840755,1757584252489,-480.0,0.00015342,2]
[384840756,1757584252499,-480.0,0.00015342,2]
[384840757,1757584252508,-480.0,0.00015342,2]
[384840758,1757584252517,-1053.06,0.00015342,2]
[384840759,1757584252526,-480.0,0.00015342,2]
[384840760,1757584252535,-523.43,0.00015342,2]
[384840761,1757584252544,-777.85,0.00015342,2]
[384840762,1757584252553,-480.0,0.00015342,2]
[384840763,1757584252562,-480.0,0.00015342,2]
[384840764,1757584252572,-282.917612,0.00015342,2]
[384840765,1757584252582,-282.917612,0.00015342,2]
[384840766,1757584252591,-151.0,0.00015342,2]
[384840767,1757584252600,-282.917612,0.00015342,2]
[384840768,1757584252609,-151.0,0.00015342,2]
[384840769,1757584252618,-282.917612,0.00015342,2]
[384840770,1757584252628,-151.0,0.00015342,2]
[384840771,1757584252638,-480.0,0.00015342,2]
[384840772,1757584252647,-151.0,0.00015342,2]
[384840773,1757584252656,-821.46,0.00015342,2]
[384840774,1757584252666,-366.086966,0.00015342,2]
[384840775,1757584252676,-366.086966,0.00015342,2]
[384840776,1757584252685,-366.086966,0.00015342,2]
[384840777,1757584252695,-366.086966,0.00015342,2]
[384840778,1757584252705,-155.496293,0.00015342,2]
[384840779,1757584252714,-151.0,0.00015342,2]
[384840780,1757584252724,-151.0,0.00015342,2]
[384840781,1757584252733,-295.203825,0.00015342,2]
[384840782,1757584252743,-151.0,0.00015342,2]
[384840783,1757584252752,-151.0,0.00015342,2]
[384840784,1757584252762,-151.0,0.00015342,2]
[384840785,1757584252771,-672.95,0.00015342,2]
[384840786,1757584252781,-151.0,0.00015342,2]
[384840787,1757584252790,-1071.51,0.00015342,2]
[384840788,1757584252800,-151.0,0.00015342,2]
[384840789,1757584252809,-566.16,0.00015342,2]
[384840790,1757584252819,-480.0,0.00015342,2]
[384840791,1757584252829,-480.0,0.00015342,2]
[384840792,1757584252839,-525.52,0.00015342,2]
[384840793,1757584252929,-1089.57,0.00015342,2]
[384840794,1757584252938,-1583.6,0.00015342,2]
[384840795,1757584252947,-480.0,0.00015342,2]
[384840796,1757584252957,-480.0,0.00015616,2]
[384840797,1757584252966,-489.81,0.00015616,2]
[384840798,1757584252975,-480.0,0.00015616,2]
[384840799,1757584252984,-151.0,0.00015616,2]
[384840800,1757584252992,-151.0,0.00015616,2]
[384840801,1757584253002,-1053.06,0.00015616,2]
[384840802,1757584253011,-151.0,0.00015616,2]
[384840803,1757584253020,-151.0,0.00015616,2]
[384840804,1757584253030,-151.0,0.00015616,2]
[384840805,1757584253040,-480.0,0.00015616,2]
[384840806,1757584253049,-299.339111,0.00015616,2]
[384840807,1757584253059,-523.43,0.00015616,2]
[384840808,1757584253072,-777.85,0.00015616,2]
[384840809,1757584253082,-480.0,0.00015616,2]
[384840810,1757584253091,-480.0,0.00015616,2]
[384840811,1757584253101,-151.0,0.00015616,2]
[384840812,1757584253110,-151.0,0.00015616,2]
[384840813,1757584253119,-151.0,0.00015616,2]
[384840814,1757584253129,-480.0,0.00015616,2]
[384840815,1757584253138,-821.46,0.00015616,2]
[384840816,1757584253147,-672.95,0.00015616,2]
[384840817,1757584253156,-1071.51,0.00015616,2]
[384840818,1757584253166,-566.16,0.00015616,2]
[384840819,1757584253175,-480.0,0.00015616,2]
[384840820,1757584253185,-480.0,0.00015616,2]
[384840821,1757584253194,-525.52,0.00015616,2]
[384840822,1757584253204,-1089.57,0.00015616,2]
[384840823,1757584253214,-1583.6,0.00015616,2]
[384840824,1757584253223,-480.0,0.00015616,2]
[384840825,1757584253233,-480.0,0.0001589,2]
[384840826,1757584253243,-480.0,0.0001589,2]
[384840827,1757584253253,-153.365457,0.0001589,2]
[384840828,1757584253262,-151.0,0.0001589,2]
[384840829,1757584253271,-151.0,0.0001589,2]
[384840830,1757584253281,-1053.06,0.0001589,2]
[384840831,1757584253291,-480.0,0.0001589,2]
[384840832,1757584253300,-523.43,0.0001589,2]
[384840833,1757584253309,-777.85,0.0001589,2]
[384840834,1757584253319,-474.34113977,0.0001589,2]
[384840835,1757584253327,-480.0,0.0001589,2]
[384840836,1757584253336,-480.0,0.0001589,2]
[384840837,1757584253346,-821.46,0.0001589,2]
[384840838,1757584253355,-672.95,0.0001589,2]
[384840839,1757584253364,-1071.51,0.0001589,2]
[384840840,1757584253374,-566.16,0.0001589,2]
[384840841,1757584253383,-480.0,0.0001589,2]
[384840842,1757584253393,-480.0,0.0001589,2]
[384840843,1757584253403,-525.52,0.0001589,2]
[384840844,1757584253413,-1089.57,0.0001589,2]
[384840845,1757584253422,-1583.6,0.0001589,2]
[384840846,1757584253432,-480.0,0.0001589,2]
[384840847,1757584253441,-151.0,0.00016009,2]
[384840848,1757584253451,-151.0,0.00016009,2]
[384840849,1757584253461,-151.0,0.00016009,2]
[384840850,1757584253470,-151.0,0.00016009,2]
[384840851,1757584253479,-976.0,0.00016009,2]
[384840852,1757584253488,-2155.0,0.00016009,2]
[384840853,1757584253497,-634.0,0.00016009,2]
[384840854,1757584253506,-480.0,0.00016164,2]
[384840855,1757584253515,-480.0,0.00016164,2]
[384840856,1757584253525,-1053.06,0.00016164,2]
[384840857,1757584253534,-480.0,0.00016164,2]
[384840858,1757584253543,-523.43,0.00016164,2]
[384840859,1757584253552,-777.85,0.00016164,2]
[384840860,1757584253561,-477.5801348,0.00016164,2]
[384840861,1757584253572,-480.0,0.00016164,2]
[384840862,1757584253581,-821.46,0.00016164,2]
[384840863,1757584253590,-672.95,0.00016164,2]
[384840864,1757584253600,-1071.51,0.00016164,2]
[384840865,1757584253609,-566.16,0.00016164,2]
[384840866,1757584253619,-480.0,0.00016164,2]
[384840867,1757584253628,-480.0,0.00016164,2]
[384840868,1757584253638,-525.52,0.00016164,2]
[384840869,1757584253647,-1089.57,0.00016164,2]
[384840870,1757584253656,-1583.6,0.00016164,2]
[384840871,1757584253666,-480.0,0.00016164,2]
[384840872,1757584253675,-287.0,0.00016332,2]
[384840873,1757584253685,-587.0,0.00016332,2]
[384840874,1757584253694,-1656.32670451,0.000164,2]
[384840875,1757584253703,-480.0,0.00016438,2]
[384840876,1757584253713,-480.0,0.00016438,2]
[384840877,1757584253723,-1053.06,0.00016438,2]
[384840878,1757584253732,-480.0,0.00016438,2]
[384840879,1757584253742,-523.43,0.00016438,2]
[384840880,1757584253751,-777.85,0.00016438,2]
[384840881,1757584253761,-480.0,0.00016438,2]
[384840882,1757584253771,-821.46,0.00016438,2]
[384840883,1757584253781,-672.95,0.00016438,2]
[384840884,1757584253790,-1071.51,0.00016438,2]
[384840885,1757584253800,-566.16,0.00016438,2]
[384840886,1757584253809,-480.0,0.00016438,2]
[384840887,1757584253819,-480.0,0.00016438,2]
[384840888,1757584253829,-525.52,0.00016438,2]
[384840889,1757584253839,-1089.57,0.00016438,2]
[384840890,1757584253848,-1583.6,0.00016438,2]
[384840891,1757584253858,-480.0,0.00016438,2]
[384840892,1757584253867,-456.54553177,0.00016519,2]
[384840893,1757584253877,-400.73913012,0.00016519,2]
[384840894,1757584253886,-2104.08061694,0.00016635,2]
[384840895,1757584253895,-186.0,0.00016687,2]
[384840896,1757584253905,-157.0,0.00016687,2]
[384840897,1757584253915,-157.0,0.00016687,2]
[384840898,1757584253924,-188.88291474,0.00016687,2]
[384840899,1757584253933,-157.0,0.00016687,2]
[384840900,1757584253943,-157.0,0.00016687,2]
[384840901,1757584253952,-186.0,0.00016687,2]
[384840902,1757584253961,-205.82472705,0.00016687,2]
[384840903,1757584253971,-157.0,0.00016687,2]
[384840904,1757584253980,-500.0,0.00016687,2]
[384840905,1757584253990,-157.0,0.00016687,2]
[384840906,1757584253999,-157.0,0.00016687,2]
[384840907,1757584254009,-151.0,0.00016712,2]
[384840908,1757584254018,-151.0,0.00016712,2]
[384840909,1757584254028,-151.373354,0.00016712,2]
[384840910,1757584254037,-151.0,0.00016712,2]
[384840911,1757584254046,-151.0,0.00016712,2]
[384840912,1757584254056,-480.0,0.00016712,2]
[384840913,1757584254068,-480.0,0.00016712,2]
[384840914,1757584254078,-151.0,0.00016712,2]
[384840915,1757584254087,-504.526592,0.00016712,2]
[384840916,1757584254096,-504.526592,0.00016712,2]
[384840917,1757584254106,-151.0,0.00016712,2]
[384840918,1757584254116,-504.526592,0.00016712,2]
[384840919,1757584254126,-504.526592,0.00016712,2]
[384840920,1757584254135,-151.0,0.00016712,2]
[384840921,1757584254146,-1053.06,0.00016712,2]
[384840922,1757584254156,-480.0,0.00016712,2]
[384840923,1757584254165,-523.43,0.00016712,2]
[384840924,1757584254175,-777.85,0.00016712,2]
[384840925,1757584254184,-480.0,0.00016712,2]
[384840926,1757584254193,-821.46,0.00016712,2]
[384840927,1757584254202,-672.95,0.00016712,2]
[384840928,1757584254212,-1071.51,0.00016712,2]
[384840929,1757584254221,-566.16,0.00016712,2]
[384840930,1757584254231,-480.0,0.00016712,2]
[384840931,1757584254244,-617.77042326,0.00016712,2]
[384840932,1757584254253,-525.52,0.00016712,2]
[384840933,1757584254263,-1089.57,0.00016712,2]
[384840934,1757584254272,-1583.6,0.00016712,2]
[384840935,1757584254282,-480.0,0.00016712,2]
[384840936,1757584254292,-157.0,0.00016961,2]
[384840937,1757584254304,-158.31206507,0.00016961,2]
[384840938,1757584254313,-500.0,0.00016961,2]
[384840939,1757584254323,-157.0,0.00016961,2]
[384840940,1757584254332,-176.58173941,0.00016961,2]
[384840941,1757584254342,-480.0,0.00016986,2]
[384840942,1757584254352,-151.0,0.00016986,2]
[384840943,1757584254361,-151.0,0.00016986,2]
[384840944,1757584254371,-151.0,0.00016986,2]
[384840945,1757584254381,-151.0,0.00016986,2]
[384840946,1757584254390,-151.875019,0.00016986,2]
[384840947,1757584254399,-480.0,0.00016986,2]
[384840948,1757584254409,-151.0,0.00016986,2]
[384840949,1757584254419,-156.239293,0.00016986,2]
[384840950,1757584254428,-1053.06,0.00016986,2]
[384840951,1757584254437,-480.0,0.00016986,2]
[384840952,1757584254446,-523.43,0.00016986,2]
[384840953,1757584254529,-777.85,0.00016986,2]
[384840954,1757584254539,-480.0,0.00016986,2]
[384840955,1757584254549,-821.46,0.00016986,2]
[384840956,1757584254558,-672.95,0.00016986,2]
[384840957,1757584254568,-1071.51,0.00016986,2]
[384840958,1757584254577,-566.16,0.00016986,2]
[384840959,1757584254586,-480.0,0.00016986,2]
[384840960,1757584254595,-525.52,0.00016986,2]
[384840961,1757584254605,-1089.57,0.00016986,2]
[384840962,1757584254615,-1583.6,0.00016986,2]
[384840963,1757584254625,-480.0,0.00016986,2]
[384840964,1757584254634,-1826.18212708,0.00017044,2]
[384840965,1757584254644,-151.0,0.000171,2]
[384840966,1757584254653,-963.06835539,0.00017183,2]
[384840967,1757584254664,-35687.49411201,0.00017183,2]
[384840968,1757584254674,-151.0,0.00017183,2]
[384840969,1757584254684,-151.0,0.00017183,2]
[384840970,1757584254694,-155.188751,0.00017183,2]
[384840971,1757584254704,-151.0,0.00017183,2]
[384840972,1757584254713,-347.855611,0.00017183,2]
[384840973,1757584254723,-347.855611,0.00017183,2]
[384840974,1757584254732,-151.0,0.00017183,2]
[384840975,1757584254741,-151.0,0.00017183,2]
[384840976,1757584254751,-151.0,0.00017183,2]
[384840977,1757584254761,-347.855611,0.00017183,2]
[384840978,1757584254770,-347.855611,0.00017183,2]
[384840979,1757584254779,-151.0,0.00017183,2]
[384840980,1757584254788,-151.0,0.00017183,2]
[384840981,1757584254798,-151.0,0.00017183,2]
[384840982,1757584254807,-151.0,0.00017183,2]
[384840983,1757584254817,-208.976597,0.00017183,2]
[384840984,1757584254826,-151.0,0.00017183,2]
[384840985,1757584254836,-151.0,0.00017183,2]
[384840986,1757584254845,-151.0,0.00017183,2]
[384840987,1757584254855,-151.0,0.00017183,2]
[384840988,1757584254864,-151.0,0.00017183,2]
[384840989,1757584254873,-151.0,0.00017183,2]
[384840990,1757584254882,-151.0,0.00017183,2]
[384840991,1757584254891,-151.0,0.00017183,2]
[384840992,1757584254900,-151.0,0.00017183,2]
[384840993,1757584254910,-151.694957,0.00017183,2]
[384840994,1757584254919,-151.0,0.00017183,2]
[384840995,1757584254929,-254.152151,0.00017183,2]
[384840996,1757584254938,-254.152151,0.00017183,2]
[384840997,1757584254947,-254.152151,0.00017183,2]
[384840998,1757584254966,-254.152151,0.00017183,2]
[384840999,1757584254977,-151.0,0.00017183,2]
[384841000,1757584254986,-151.0,0.00017183,2]
[384841001,1757584254995,-151.0,0.00017183,2]
[384841002,1757584255004,-151.0,0.00017183,2]
[384841003,1757584255014,-151.0,0.00017183,2]
[384841004,1757584255023,-151.0,0.00017183,2]
[384841005,1757584255033,-394.92252,0.00017183,2]
[384841006,1757584255042,-394.92252,0.00017183,2]
[384841007,1757584255051,-394.92252,0.00017183,2]
[384841008,1757584255061,-394.92252,0.00017183,2]
[384841009,1757584255074,-151.0,0.00017183,2]
[384841010,1757584255083,-151.0,0.00017183,2]
[384841011,1757584255092,-151.0,0.00017183,2]
[384841012,1757584255101,-186.0,0.00017235,2]
[384841013,1757584255111,-500.0,0.00017235,2]
[384841014,1757584255121,-164.73189402,0.00017235,2]
[384841015,1757584255130,-151.0,0.0001726,2]
[384841016,1757584255139,-151.0,0.0001726,2]
[384841017,1757584255148,-151.0,0.0001726,2]
[384841018,1757584255158,-151.0,0.0001726,2]
[384841019,1757584255167,-480.0,0.0001726,2]
[384841020,1757584255176,-480.0,0.0001726,2]
[384841021,1757584255186,-1053.06,0.0001726,2]
[384841022,1757584255195,-480.0,0.0001726,2]
[384841023,1757584255204,-523.43,0.0001726,2]
[384841024,1757584255214,-777.85,0.0001726,2]
[384841025,1757584255223,-282.917612,0.0001726,2]
[384841026,1757584255232,-282.917612,0.0001726,2]
[384841027,1757584255241,-151.0,0.0001726,2]
[384841028,1757584255251,-282.917612,0.0001726,2]
[384841029,1757584255260,-151.0,0.0001726,2]
[384841030,1757584255269,-282.917612,0.0001726,2]
[384841031,1757584255278,-151.0,0.0001726,2]
[384841032,1757584255288,-480.0,0.0001726,2]
[384841033,1757584255296,-151.0,0.0001726,2]
[384841034,1757584255309,-366.086966,0.0001726,2]
[384841035,1757584255318,-821.46,0.0001726,2]
[384841036,1757584255327,-366.086966,0.0001726,2]
[384841037,1757584255336,-366.086966,0.0001726,2]
[384841038,1757584255346,-366.086966,0.0001726,2]
[384841039,1757584255356,-672.95,0.0001726,2]
[384841040,1757584255365,-1071.51,0.0001726,2]
[384841041,1757584255375,-566.16,0.0001726,2]
[384841042,1757584255384,-268.76,0.0001726,2]
[384841043,1757584255393,-525.52,0.0001726,2]
[384841044,1757584255403,-1089.57,0.0001726,2]
[384841045,1757584255412,-1583.6,0.0001726,2]
[384841046,1757584255423,-480.0,0.0001726,2]
[384841047,1757584255432,-1602.95652049,0.00017306,2]
[384841048,1757584255442,-11506.679085,0.00017322,2]
[384841049,1757584255451,-151.0,0.00017322,2]
[384841050,1757584255461,-151.0,0.00017322,2]
[384841051,1757584255470,-151.0,0.00017322,2]
[384841052,1757584255479,-151.0,0.00017322,2]
[384841053,1757584255489,-151.0,0.00017322,2]
[384841054,1757584255499,-151.0,0.00017322,2]
[384841055,1757584255509,-230.130328,0.00017322,2]
[384841056,1757584255517,-152.062378,0.00017322,2]
[384841057,1757584255527,-151.0,0.00017322,2]
[384841058,1757584255536,-151.0,0.00017322,2]
[384841059,1757584255546,-480.0,0.00017534,2]
[384841060,1757584255557,-480.0,0.00017534,2]
[384841061,1757584255567,-1053.06,0.00017534,2]
[384841062,1757584255576,-480.0,0.00017534,2]
[384841063,1757584255585,-523.43,0.00017534,2]
[384841064,1757584255594,-777.85,0.00017534,2]
[384841065,1757584255603,-461.55553321,0.00017534,2]
[384841066,1757584255613,-821.46,0.00017534,2]
[384841067,1757584255622,-672.95,0.00017534,2]
[384841068,1757584255633,-1071.51,0.00017534,2]
[384841069,1757584255642,-566.16,0.00017534,2]
[384841070,1757584255651,-525.52,0.00017534,2]
[384841071,1757584255660,-1089.57,0.00017534,2]
[384841072,1757584255670,-1583.6,0.00017534,2]
[384841073,1757584255679,-480.0,0.00017534,2]
[384841074,1757584255689,-4108.90978593,0.00017568,2]
[384841075,1757584255698,-168.0,0.00017587,2]
[384841076,1757584255709,-151.0,0.000176,2]
[384841077,1757584255718,-5953.69614283,0.00017669,2]
[384841078,1757584255727,-151.0,0.00017734,2]
[384841079,1757584255736,-151.0,0.00017734,2]
[384841080,1757584255745,-151.0,0.00017734,2]
[384841081,1757584255754,-153.16402,0.00017734,2]
[384841082,1757584255763,-151.0,0.00017734,2]
[384841083,1757584255772,-168.0,0.00017794,2]
[384841084,1757584255781,-480.0,0.00017808,2]
[384841085,1757584255790,-480.0,0.00017808,2]
[384841086,1757584255799,-1053.06,0.00017808,2]
[384841087,1757584255809,-480.0,0.00017808,2]
[384841088,1757584255818,-523.43,0.00017808,2]
[384841089,1757584255827,-777.85,0.00017808,2]
[384841090,1757584255835,-821.46,0.00017808,2]
[384841091,1757584255845,-672.95,0.00017808,2]
[384841092,1757584255853,-1071.51,0.00017808,2]
[384841093,1757584255862,-566.16,0.00017808,2]
[384841094,1757584255871,-525.52,0.00017808,2]
[384841095,1757584255880,-1089.57,0.00017808,2]
[384841096,1757584255889,-1583.6,0.00017808,2]
[384841097,1757584255898,-480.0,0.00017808,2]
[384841098,1757584255907,-174.59529715,0.0001784,2]
[384841099,1757584255916,-675.0,0.000179,2]
[384841100,1757584255926,-504.526592,0.0001794,2]
[384841101,1757584256003,-504.526592,0.0001794,2]
[384841102,1757584256012,-151.0,0.0001794,2]
[384841103,1757584256021,-504.526592,0.0001794,2]
[384841104,1757584256030,-504.526592,0.0001794,2]
[384841105,1757584256039,-151.0,0.0001794,2]
[384841106,1757584256047,-28368.81243738,0.0001794,2]
[384841107,1757584256056,-40353.81803073,0.00018,5]
[384841108,1757584256066,-151.0,0.00018,2]
[384841109,1757584256076,-151.0,0.00018,2]
[384841110,1757584256085,-151.0,0.00018,2]
[384841111,1757584256094,-151.0,0.00018,2]
[384841112,1757584256104,-151.0,0.00018,2]
[384841113,1757584256112,-151.0,0.00018,2]
[384841114,1757584256122,-151.0,0.00018,2]
[384841115,1757584256131,-151.0,0.00018,2]
[384841116,1757584256140,-153.215581,0.00018,2]
[384841117,1757584256149,-151.0,0.00018,2]
[384841118,1757584256159,-199.450141,0.00018,2]
[384841119,1757584256168,-262.75572023,0.00018017,2]
[384841120,1757584256177,-157.0,0.0001804,2]
[384841121,1757584256186,-168.0,0.0001804,2]
[384841122,1757584256195,-168.0,0.00018045,2]
[384841123,1757584256204,-151.0,0.00018082,2]
[384841124,1757584256214,-151.0,0.00018082,2]
[384841125,1757584256223,-151.0,0.00018082,2]
[384841126,1757584256232,-480.0,0.00018082,2]
[384841127,1757584256241,-480.0,0.00018082,2]
[384841128,1757584256251,-1053.06,0.00018082,2]
[384841129,1757584256260,-480.0,0.00018082,2]
[384841130,1757584256269,-523.43,0.00018082,2]
[384841131,1757584256278,-777.85,0.00018082,2]
[384841132,1757584256288,-821.46,0.00018082,2]
[384841133,1757584256297,-672.95,0.00018082,2]
[384841134,1757584256306,-1071.51,0.00018082,2]
[384841135,1757584256316,-566.16,0.00018082,2]
[384841136,1757584256325,-525.52,0.00018082,2]
[384841137,1757584256334,-1089.57,0.00018082,2]
[384841138,1757584256344,-1583.6,0.00018082,2]
[384841139,1757584256353,-480.0,0.00018082,2]
[384841140,1757584256362,-7297.42377981,0.00018093,2]
[384841141,1757584256372,-3603.04551892,0.00018093,2]
[384841142,1757584256383,-151.0,0.00018093,2]
[384841143,1757584256392,-151.0,0.00018093,2]
[384841144,1757584256401,-151.0,0.00018093,2]
[384841145,1757584256410,-151.0,0.00018093,2]
[384841146,1757584256420,-151.0,0.00018093,2]
[384841147,1757584256429,-151.0,0.00018093,2]
[384841148,1757584256438,-254.152151,0.00018093,2]
[384841149,1757584256448,-254.152151,0.00018093,2]
[384841150,1757584256457,-254.152151,0.00018093,2]
[384841151,1757584256467,-254.152148,0.00018093,2]
[384841152,1757584256476,-151.0,0.00018093,2]
[384841153,1757584256485,-151.0,0.00018093,2]
[384841154,1757584256495,-151.0,0.00018093,2]
[384841155,1757584256504,-151.0,0.00018093,2]
[384841156,1757584256513,-151.0,0.00018093,2]
[384841157,1757584256523,-394.92252,0.00018093,2]
[384841158,1757584256532,-394.92252,0.00018093,2]
[384841159,1757584256542,-394.92252,0.00018093,2]
[384841160,1757584256551,-394.922514,0.00018093,2]
[384841161,1757584256561,-151.0,0.00018093,2]
[384841162,1757584256570,-151.0,0.00018093,2]
[384841163,1757584256579,-151.0,0.00018093,2]
[384841164,1757584256589,-168.0,0.00018148,2]
[384841165,1757584256598,-2104.08061694,0.00018153,2]
[384841166,1757584256608,-168.0,0.00018199,2]
[384841167,1757584256617,-168.0,0.00018298,2]
[384841168,1757584256627,-157.0,0.00018314,2]
[384841169,1757584256636,-168.0,0.00018342,2]
[384841170,1757584256646,-480.0,0.00018356,2]
[384841171,1757584256655,-480.0,0.00018356,2]
[384841172,1757584256664,-151.0,0.00018356,2]
[384841173,1757584256674,-347.855611,0.00018356,2]
[384841174,1757584256683,-151.0,0.00018356,2]
[384841175,1757584256692,-347.855611,0.00018356,2]
[384841176,1757584256702,-151.0,0.00018356,2]
[384841177,1757584256711,-151.0,0.00018356,2]
[384841178,1757584256720,-347.855611,0.00018356,2]
[384841179,1757584256729,-347.855611,0.00018356,2]
[384841180,1757584256739,-151.0,0.00018356,2]
[384841181,1757584256748,-151.0,0.00018356,2]
[384841182,1757584256757,-151.0,0.00018356,2]
[384841183,1757584256766,-151.0,0.00018356,2]
[384841184,1757584256776,-151.0,0.00018356,2]
[384841185,1757584256785,-151.0,0.00018356,2]
[384841186,1757584256794,-151.581267,0.00018356,2]
[384841187,1757584256803,-1053.06,0.00018356,2]
[384841188,1757584256813,-480.0,0.00018356,2]
[384841189,1757584256822,-523.43,0.00018356,2]
[384841190,1757584256831,-777.85,0.00018356,2]
[384841191,1757584256841,-282.917612,0.00018356,2]
[384841192,1757584256850,-282.917612,0.00018356,2]
[384841193,1757584256859,-151.0,0.00018356,2]
[384841194,1757584256868,-282.917612,0.00018356,2]
[384841195,1757584256878,-151.0,0.00018356,2]
[384841196,1757584256887,-282.917603,0.00018356,2]
[384841197,1757584256896,-151.0,0.00018356,2]
[384841198,1757584256905,-151.985322,0.00018356,2]
[384841199,1757584256915,-366.086966,0.00018356,2]
[384841200,1757584256924,-821.46,0.00018356,2]
[384841201,1757584256933,-366.086966,0.00018356,2]
[384841202,1757584256943,-366.086966,0.00018356,2]
[384841203,1757584256952,-366.086958,0.00018356,2]
[384841204,1757584256961,-672.95,0.00018356,2]
[384841205,1757584256971,-1071.51,0.00018356,2]
[384841206,1757584256980,-566.16,0.00018356,2]
[384841207,1757584256989,-525.52,0.00018356,2]
[384841208,1757584256998,-1089.57,0.00018356,2]